fUST/lending_fUST_20250901
["ID","MTS","AMOUNT","RATE_DAILY","PERIOD"]
[382550095,1756665047396,-480.0,0.00017345,2]
[382550097,1756665047406,-881.38,0.00017345,2]
[382550099,1756665047415,-480.0,0.00017345,2]
[382550101,1756665047425,-480.0,0.00017345,2]
[382550103,1756665047435,-1071.76,0.00017345,2]
[382550105,1756665047445,-480.0,0.00017345,2]
[382550107,1756665047454,-524.12,0.00017345,2]
[382550109,1756665047463,-956.29,0.00017345,2]
[382550111,1756665047473,-480.0,0.00017345,2]
[382550113,1756665047483,-480.0,0.00017345,2]
[382550115,1756665047492,-480.0,0.00017345,2]
[382550117,1756665047502,-542.85,0.00017345,2]
[382550119,1756665047511,-480.0,0.00017345,2]
[382550122,1756665047520,-480.0,0.00017345,2]
[382550123,1756665047530,-1019.51,0.00017345,2]
[382550126,1756665047540,-480.0,0.00017345,2]
[382550128,1756665047549,-480.0,0.00017345,2]
[382550130,1756665047559,-480.0,0.00017345,2]
[382550132,1756665047568,-480.0,0.00017345,2]
[382550134,1756665047578,-480.0,0.00017345,2]
[382550136,1756665047587,-679.91,0.00017345,2]
[382550138,1756665047597,-480.0,0.00017345,2]
[382550140,1756665047607,-480.0,0.00017345,2]
[382550142,1756665047616,-480.0,0.00017345,2]
[382550144,1756665047626,-480.0,0.00017345,2]
[382550146,1756665047636,-609.95,0.00017345,2]
[382550148,1756665047645,-568.92,0.00017345,2]
[382550150,1756665047654,-618.42,0.00017345,2]
[382550152,1756665047664,-844.75,0.00017345,2]
[382550154,1756665047674,-480.0,0.00017345,2]
[382550156,1756665047684,-480.0,0.00017345,2]
[382550158,1756665047694,-480.0,0.00017345,2]
[382550160,1756665047703,-891.5,0.00017345,2]
[382550162,1756665047713,-480.0,0.00017345,2]
[382550164,1756665047723,-589.3,0.00017345,2]
[382550166,1756665047735,-480.0,0.00017345,2]
[382550169,1756665047746,-480.0,0.00017345,2]
[382550171,1756665047757,-418.0733762,0.00017345,2]
[382550173,1756665047767,-480.0,0.00017345,2]
[382550175,1756665047776,-480.0,0.00017345,2]
[382550177,1756665047787,-539.56,0.00017345,2]
[382550179,1756665047796,-480.0,0.00017345,2]
[382550181,1756665047806,-480.0,0.00017345,2]
[382550183,1756665047817,-949.6,0.00017345,2]
[382550185,1756665047827,-272.63163788,0.00017345,2]
[382550187,1756665047837,-794.6,0.00017345,2]
[382550189,1756665047846,-801.11,0.00017345,2]
[382550191,1756665047856,-864.22,0.00017345,2]
[382550193,1756665047865,-260.69080686,0.00017345,2]
[382550195,1756665047875,-420.79921387,0.00017345,2]
[382550197,1756665047885,-303.82237786,0.00017345,2]
[382550199,1756665047895,-530.66,0.00017345,2]
[382550201,1756665047904,-1076.94,0.00017345,2]
[382550203,1756665047915,-480.0,0.00017345,2]
[382550205,1756665047924,-743.37,0.00017345,2]
[382550207,1756665047934,-480.0,0.00017345,2]
[382550209,1756665047944,-333.83539052,0.00017345,2]
[382550211,1756665047953,-480.0,0.00017345,2]
[382550213,1756665047963,-480.0,0.00017345,2]
[382550216,1756665047974,-1577.6,0.00017345,2]
[382550218,1756665047984,-480.0,0.00017345,2]
[382550220,1756665047993,-480.0,0.00017345,2]
[382550222,1756665048003,-887.65,0.00017345,2]
[382550224,1756665048013,-480.0,0.00017345,2]
[382550226,1756665048022,-500.0,0.00017345,2]
[382550228,1756665048032,-480.0,0.00017345,2]
[382550230,1756665048043,-749.36,0.00017345,2]
[382550232,1756665048052,-480.0,0.00017345,2]
[382550234,1756665048062,-427.78250325,0.00017345,2]
[382550236,1756665048072,-480.0,0.00017345,2]
[382550238,1756665048081,-480.0,0.00017345,2]
[382550240,1756665048092,-480.0,0.00017345,2]
[382550242,1756665048101,-545.24,0.00017345,2]
[382550244,1756665048111,-1587.3,0.00017345,2]
[382550246,1756665048121,-612.44,0.00017345,2]
[382550248,1756665048131,-971.15,0.00017345,2]
[382550250,1756665048141,-480.0,0.00017345,2]
[382550252,1756665048150,-705.26,0.00017345,2]
[382550254,1756665048159,-480.0,0.00017345,2]
[382550256,1756665048169,-480.0,0.00017345,2]
[382550258,1756665048179,-557.64,0.00017345,2]
[382550260,1756665048189,-480.0,0.00017345,2]
[382550262,1756665048199,-480.0,0.00017345,2]
[382550264,1756665048208,-642.29,0.00017345,2]
[382550266,1756665048218,-696.29,0.00017345,2]
[382550268,1756665048227,-480.0,0.00017345,2]
[382550270,1756665048237,-480.0,0.00017345,2]
[382550272,1756665048246,-480.0,0.00017345,2]
[382550274,1756665048256,-489.7,0.00017345,2]
[382550276,1756665048266,-480.0,0.00017345,2]
[382550278,1756665048276,-480.0,0.00017345,2]
[382550280,1756665048286,-480.0,0.00017345,2]
[382550282,1756665048295,-480.0,0.00017345,2]
[382550284,1756665048305,-480.0,0.00017345,2]
[382550286,1756665048315,-480.0,0.00017345,2]
[382550289,1756665048325,-480.0,0.00017345,2]
[382550291,1756665048335,-480.0,0.00017345,2]
[382550293,1756665048344,-524.31,0.00017345,2]
[382550295,1756665048354,-480.0,0.00017345,2]
[382550297,1756665048364,-480.0,0.00017345,2]
[382550299,1756665048373,-480.0,0.00017345,2]
[382550301,1756665048383,-480.0,0.00017345,2]
[382550303,1756665048394,-500.0,0.00017359,2]
[382550305,1756665048404,-500.0,0.00017359,2]
[382550307,1756665048414,-500.0,0.00017359,2]
[382550309,1756665048424,-500.0,0.00017359,2]
[382550310,1756665048434,-500.0,0.0001738,2]
[382550311,1756665048443,-500.0,0.0001738,2]
[382550312,1756665048454,-500.0,0.0001738,2]
[382550313,1756665048464,-500.0,0.0001738,2]
[382550314,1756665048475,-500.0,0.0001738,2]
[382550315,1756665048485,-500.0,0.0001738,2]
[382550316,1756665048495,-500.0,0.0001738,2]
[382550317,1756665048505,-151.0,0.000174,2]
[382550318,1756665048514,-1089.62,0.00017419,2]
[382550319,1756665048524,-1896.44,0.00017419,2]
[382550320,1756665048534,-936.22,0.00017419,2]
[382550321,1756665048544,-594.85,0.00017419,2]
[382550322,1756665048554,-1209.37,0.00017419,2]
[382550323,1756665048565,-561.45,0.00017419,2]
[382550324,1756665048575,-500.0,0.0001742,2]
[382550325,1756665048584,-500.0,0.0001742,2]
[382550326,1756665048594,-500.0,0.0001742,2]
[382550327,1756665048604,-480.0,0.0001742,2]
[382550328,1756665048614,-571.37,0.0001742,2]
[382550329,1756665048623,-1181.63,0.0001742,2]
[382550330,1756665048634,-516.06,0.0001742,2]
[382550332,1756665048644,-480.0,0.0001742,2]
[382550334,1756665048654,-692.46,0.0001742,2]
[382550336,1756665048663,-480.0,0.0001742,2]
[382550338,1756665048674,-480.0,0.0001742,2]
[382550340,1756665048685,-529.25,0.0001742,2]
[382550341,1756665048695,-480.0,0.0001742,2]
[382550342,1756665048705,-701.0,0.0001742,2]
[382550343,1756665048715,-890.51,0.0001742,2]
[382550344,1756665048725,-480.0,0.0001742,2]
[382550345,1756665048737,-532.81,0.0001742,2]
[382550346,1756665048746,-903.52,0.0001742,2]
[382550347,1756665048755,-480.0,0.0001742,2]
[382550348,1756665048765,-480.0,0.0001742,2]
[382550349,1756665048775,-480.0,0.0001742,2]
[382550350,1756665048784,-480.0,0.0001742,2]
[382550351,1756665048794,-480.0,0.0001742,2]
[382550352,1756665048804,-485.49,0.0001742,2]
[382550353,1756665048813,-595.46,0.0001742,2]
[382550354,1756665048823,-480.0,0.0001742,2]
[382550355,1756665048834,-480.0,0.0001742,2]
[382550356,1756665048844,-11364.23969824,0.00017485,2]
[382550357,1756665048854,-160.0,0.00017494,2]
[382550358,1756665048863,-160.0,0.00017494,2]
[382550359,1756665048873,-530.02580203,0.00017494,2]
[382550360,1756665048883,-160.0,0.00017494,2]
[382550361,1756665048892,-417.15472785,0.00017494,2]
[382550362,1756665048902,-160.0,0.00017494,2]
[382550363,1756665048912,-160.0,0.00017494,2]
[382550364,1756665048922,-217.4012883,0.00017494,2]
[382550378,1756665049093,-160.0,0.00017494,2]
[382550380,1756665049103,-160.0,0.00017494,2]
[382550382,1756665049112,-232.78794292,0.00017494,2]
[382550384,1756665049122,-160.0,0.00017494,2]
[382550386,1756665049133,-845.95363151,0.00017494,2]
[382550388,1756665049142,-425.75173308,0.00017494,2]
[382550390,1756665049152,-151.0,0.000175,2]
[382550392,1756665049162,-500.0,0.00017516,2]
[382550394,1756665049172,-681.1,0.00017518,2]
[382550396,1756665049181,-480.0,0.00017518,2]
[382550398,1756665049191,-480.0,0.00017518,2]
[382550401,1756665049202,-480.0,0.00017518,2]
[382550403,1756665049212,-1904.78,0.00017518,2]
[382550405,1756665049222,-544.56,0.00017518,2]
[382550407,1756665049232,-480.0,0.00017518,2]
[382550408,1756665049242,-1162.75,0.00017518,2]
[382550411,1756665049252,-480.0,0.00017518,2]
[382550413,1756665049261,-631.41,0.00017518,2]
[382550414,1756665049271,-534.55,0.00017518,2]
[382550416,1756665049280,-480.0,0.00017518,2]
[382550418,1756665049290,-480.0,0.00017518,2]
[382550420,1756665049299,-578.72,0.00017518,2]
[382550423,1756665049309,-887.77,0.00017519,2]
[382550424,1756665049319,-480.0,0.00017519,2]
[382550426,1756665049328,-480.0,0.00017519,2]
[382550429,1756665049338,-480.0,0.00017519,2]
[382550431,1756665049347,-480.0,0.00017519,2]
[382550432,1756665049357,-480.0,0.00017519,2]
[382550434,1756665049367,-480.0,0.00017519,2]
[382550437,1756665049376,-480.0,0.00017519,2]
[382550438,1756665049385,-480.0,0.00017519,2]
[382550440,1756665049395,-480.0,0.00017519,2]
[382550442,1756665049406,-618.67,0.00017519,2]
[382550444,1756665049415,-614.59,0.00017519,2]
[382550446,1756665049425,-480.0,0.00017519,2]
[382550448,1756665049434,-630.73,0.00017519,2]
[382550450,1756665049444,-480.0,0.00017519,2]
[382550452,1756665049454,-480.0,0.00017519,2]
[382550454,1756665049463,-480.0,0.00017519,2]
[382550456,1756665049473,-480.0,0.00017519,2]
[382550458,1756665049483,-480.0,0.00017519,2]
[382550460,1756665049493,-480.0,0.00017519,2]
[382550462,1756665049502,-480.0,0.00017519,2]
[382550464,1756665049512,-480.0,0.00017519,2]
[382550466,1756665049522,-758.9,0.00017519,2]
[382550468,1756665049531,-480.0,0.00017519,2]
[382550470,1756665049540,-480.0,0.00017519,2]
[382550472,1756665049550,-480.0,0.00017519,2]
[382550474,1756665049559,-769.99,0.00017519,2]
[382550476,1756665049570,-909.08,0.00017519,2]
[382550478,1756665049579,-480.0,0.00017519,2]
[382550480,1756665049589,-480.0,0.00017519,2]
[382550482,1756665049601,-737.14,0.00017519,2]
[382550484,1756665049610,-480.0,0.00017519,2]
[382550486,1756665049619,-480.0,0.00017519,2]
[382550488,1756665049629,-480.0,0.00017519,2]
[382550490,1756665049639,-480.0,0.00017519,2]
[382550492,1756665049648,-480.0,0.00017519,2]
[382550494,1756665049658,-480.0,0.00017519,2]
[382550496,1756665049667,-480.0,0.00017519,2]
[382550498,1756665049678,-480.0,0.00017519,2]
[382550500,1756665049688,-480.0,0.00017519,2]
[382550502,1756665049698,-480.0,0.00017519,2]
[382550504,1756665049708,-480.0,0.00017519,2]
[382550506,1756665049718,-480.0,0.00017519,2]
[382550508,1756665049727,-480.0,0.00017519,2]
[382550510,1756665049741,-741.09,0.00017519,2]
[382550512,1756665049750,-568.74,0.00017519,2]
[382550514,1756665049760,-706.76,0.00017519,2]
[382550516,1756665049769,-151.0,0.00017519,2]
[382550518,1756665049779,-1080.25,0.00017519,2]
[382550520,1756665049789,-538.41,0.00017519,2]
[382550522,1756665049798,-3191.46,0.00017519,2]
[382550524,1756665049808,-480.0,0.00017519,2]
[382550526,1756665049818,-282.719668,0.00017519,2]
[382550528,1756665049828,-1541.27,0.00017519,2]
[382550530,1756665049837,-1197.06,0.00017519,2]
[382550532,1756665049846,-480.0,0.00017519,2]
[382550534,1756665049856,-480.0,0.00017519,2]
[382550536,1756665049865,-480.0,0.00017519,2]
[382550538,1756665049874,-264.17963581,0.00017519,2]
[382550540,1756665049884,-480.0,0.00017519,2]
[382550542,1756665049893,-759.6,0.00017519,2]
[382550544,1756665049903,-480.0,0.00017519,2]
[382550546,1756665049912,-480.0,0.00017519,2]
[382550548,1756665049922,-620.19,0.00017519,2]
[382550550,1756665049931,-889.86,0.00017519,2]
[382550552,1756665049940,-151.0,0.00017519,2]
[382550554,1756665049950,-612.73,0.00017519,2]
[382550556,1756665049960,-480.0,0.00017519,2]
[382550558,1756665049969,-804.52,0.00017519,2]
[382550560,1756665049979,-663.05,0.00017519,2]
[382550562,1756665049988,-295.25533,0.00017519,2]
[382550564,1756665049997,-924.02,0.00017519,2]
[382550566,1756665050008,-480.0,0.00017519,2]
[382550568,1756665050018,-480.0,0.00017519,2]
[382550570,1756665050027,-480.0,0.00017519,2]
[382550572,1756665050037,-5636.05,0.00017519,2]
[382550574,1756665050047,-880.14,0.00017519,2]
[382550576,1756665050057,-4629.05,0.00017519,2]
[382550578,1756665050067,-480.0,0.00017519,2]
[382550580,1756665050076,-480.0,0.00017519,2]
[382550582,1756665050088,-926.92,0.00017519,2]
[382550584,1756665050097,-480.0,0.00017519,2]
[382550586,1756665050107,-481.64,0.00017519,2]
[382550588,1756665050116,-1168.56,0.00017519,2]
[382550590,1756665050126,-816.33,0.00017519,2]
[382550592,1756665050136,-2313.67,0.00017519,2]
[382550594,1756665050145,-1205.01,0.00017519,2]
[382550596,1756665050155,-480.6,0.00017519,2]
[382550598,1756665050164,-555.86,0.00017519,2]
[382550600,1756665050173,-480.0,0.00017519,2]
[382550602,1756665050183,-480.0,0.00017519,2]
[382550604,1756665050192,-480.0,0.00017519,2]
[382550606,1756665050202,-290.01900254,0.00017519,2]
[382550608,1756665050212,-480.0,0.00017519,2]
[382550610,1756665050222,-480.0,0.00017519,2]
[382550612,1756665050231,-835.55,0.00017519,2]
[382550614,1756665050241,-480.0,0.00017519,2]
[382550616,1756665050250,-686.18,0.00017519,2]
[382550618,1756665050259,-480.0,0.00017519,2]
[382550620,1756665050268,-1193.78,0.00017519,2]
[382550622,1756665050278,-480.0,0.00017519,2]
[382550624,1756665050288,-480.0,0.00017519,2]
[382550626,1756665050297,-480.0,0.00017519,2]
[382550628,1756665050307,-870.94,0.00017519,2]
[382550630,1756665050316,-4223.74,0.00017519,2]
[382550632,1756665050326,-613.83532325,0.00017519,2]
[382550634,1756665050335,-952.78,0.00017519,2]
[382550636,1756665050345,-480.0,0.00017519,2]
[382550638,1756665050354,-151.0,0.00017519,2]
[382550640,1756665050363,-879.28,0.00017519,2]
[382550642,1756665050373,-480.0,0.00017519,2]
[382550644,1756665050382,-480.0,0.00017519,2]
[382550646,1756665050392,-151.0,0.00017519,2]
[382550648,1756665050402,-1698.61,0.00017519,2]
[382550650,1756665050411,-1058.9,0.00017519,2]
[382550652,1756665050420,-480.0,0.00017519,2]
[382550653,1756665050430,-480.0,0.00017519,2]
[382550655,1756665050439,-2733.82,0.00017519,2]
[382550657,1756665050448,-480.0,0.00017519,2]
[382550659,1756665050458,-480.0,0.00017519,2]
[382550661,1756665050467,-151.0,0.00017519,2]
[382550664,1756665050477,-866.26,0.00017519,2]
[382550666,1756665050486,-559.46,0.00017519,2]
[382550668,1756665050497,-480.0,0.00017519,2]
[382550669,1756665050506,-1662.33,0.00017519,2]
[382550671,1756665050515,-1113.02,0.00017519,2]
[382550673,1756665050525,-651.86,0.00017519,2]
[382550675,1756665050534,-480.0,0.00017519,2]
[382550678,1756665050544,-663.12,0.00017519,2]
[382550679,1756665050553,-480.0,0.00017519,2]
[382550681,1756665050565,-591.73,0.00017519,2]
[382550683,1756665050577,-259.411577,0.00017519,2]
[382550685,1756665050586,-871.06,0.00017519,2]
[382550687,1756665050596,-597.54,0.00017519,2]
[382550689,1756665050606,-480.0,0.00017519,2]
[382550692,1756665050615,-151.0,0.00017519,2]
[382550693,1756665050625,-480.0,0.00017519,2]
[382550695,1756665050635,-480.0,0.00017519,2]
[382550697,1756665050644,-1062.58,0.00017519,2]
[382550699,1756665050654,-931.05,0.00017519,2]
[382550701,1756665050665,-151.0,0.00017519,2]
[382550703,1756665050676,-480.0,0.00017519,2]
[382550705,1756665050687,-1081.73,0.00017519,2]
[382550707,1756665050699,-480.0,0.00017519,2]
[382550710,1756665050709,-692.37,0.00017519,2]
[382550712,1756665050719,-480.0,0.00017519,2]
[382550713,1756665050731,-500.0,0.00017537,2]
[382550715,1756665050746,-501.40685948,0.00017546,2]
[382550718,1756665050755,-151.0,0.000176,2]
[382550719,1756665050766,-500.0,0.00017619,2]
[382550722,1756665050778,-480.0,0.00017619,2]
[382550724,1756665050788,-940.76,0.00017619,2]
[382550726,1756665050798,-480.0,0.00017619,2]
[382550728,1756665050816,-598.03,0.00017619,2]
[382550730,1756665050826,-480.0,0.00017619,2]
[382550732,1756665050835,-496.54,0.00017619,2]
[382550734,1756665050845,-480.0,0.00017619,2]
[382550736,1756665050854,-480.0,0.00017619,2]
[382550738,1756665050863,-480.0,0.00017619,2]
[382550740,1756665050872,-480.0,0.00017619,2]
[382550742,1756665050881,-480.0,0.00017619,2]
[382550744,1756665050892,-480.0,0.00017619,2]
[382550746,1756665050901,-480.0,0.00017619,2]
[382550748,1756665050911,-480.0,0.00017619,2]
[382550750,1756665050920,-194.61818637,0.00017619,2]
[382550752,1756665050931,-480.0,0.00017619,2]
[382550754,1756665050942,-480.0,0.00017619,2]
[382550756,1756665050951,-480.0,0.00017619,2]
[382550758,1756665050962,-480.0,0.00017619,2]
[382550760,1756665050972,-480.0,0.00017619,2]
[382550762,1756665050983,-480.0,0.00017619,2]
[382550764,1756665050994,-1015.25,0.00017619,2]
[382550766,1756665051004,-480.0,0.00017619,2]
[382550768,1756665051013,-480.0,0.00017619,2]
[382550770,1756665051023,-849.72,0.00017619,2]
[382550772,1756665051034,-480.0,0.00017619,2]
[382550774,1756665051044,-727.84,0.00017619,2]
[382550776,1756665051053,-480.0,0.00017619,2]
[382550778,1756665051063,-974.17,0.00017619,2]
[382550780,1756665051072,-480.0,0.00017619,2]
[382550782,1756665051082,-503.27,0.00017619,2]
[382550784,1756665051091,-254.43567061,0.00017619,2]
[382550786,1756665051101,-480.0,0.00017619,2]
[382550788,1756665051111,-480.0,0.00017619,2]
[382550790,1756665051120,-480.0,0.00017619,2]
[382550792,1756665051130,-480.0,0.00017619,2]
[382550793,1756665051141,-480.0,0.00017619,2]
[382550795,1756665051152,-725.04,0.00017619,2]
[382550798,1756665051161,-1120.35,0.00017619,2]
[382550799,1756665051171,-561.68,0.00017619,2]
[382550801,1756665051180,-581.32,0.00017619,2]
[382550803,1756665051189,-964.97,0.00017619,2]
[382550805,1756665051198,-480.0,0.00017619,2]
[382550807,1756665051207,-480.0,0.00017619,2]
[382550809,1756665051216,-881.38,0.00017619,2]
[382550811,1756665051226,-480.0,0.00017619,2]
[382550813,1756665051235,-480.0,0.00017619,2]
[382550815,1756665051246,-1071.76,0.00017619,2]
[382550817,1756665051255,-480.0,0.00017619,2]
[382550819,1756665051264,-524.12,0.00017619,2]
[382550821,1756665051274,-956.29,0.00017619,2]
[382550823,1756665051284,-480.0,0.00017619,2]
[382550825,1756665051293,-480.0,0.00017619,2]
[382550827,1756665051302,-480.0,0.00017619,2]
[382550829,1756665051311,-542.85,0.00017619,2]
[382550831,1756665051321,-480.0,0.00017619,2]
[382550833,1756665051330,-480.0,0.00017619,2]
[382550835,1756665051340,-1019.51,0.00017619,2]
[382550837,1756665051349,-480.0,0.00017619,2]
[382550838,1756665051358,-480.0,0.00017619,2]
[382550839,1756665051368,-480.0,0.00017619,2]
[382550840,1756665051377,-480.0,0.00017619,2]
[382550841,1756665051386,-480.0,0.00017619,2]
[382550842,1756665051441,-679.91,0.00017619,2]
[382550843,1756665051450,-480.0,0.00017619,2]
[382550844,1756665051459,-480.0,0.00017619,2]
[382550845,1756665051467,-338.68950928,0.00017619,2]
[382550846,1756665051477,-480.0,0.00017619,2]
[382550848,1756665051487,-609.95,0.00017619,2]
[382550850,1756665051497,-568.92,0.00017619,2]
[382550852,1756665051506,-618.42,0.00017619,2]
[382550854,1756665051515,-844.75,0.00017619,2]
[382550856,1756665051524,-480.0,0.00017619,2]
[382550858,1756665051534,-480.0,0.00017619,2]
[382550860,1756665051544,-480.0,0.00017619,2]
[382550862,1756665051553,-891.5,0.00017619,2]
[382550864,1756665051562,-480.0,0.00017619,2]
[382550866,1756665051572,-589.3,0.00017619,2]
[382550868,1756665051581,-480.0,0.00017619,2]
[382550870,1756665051591,-433.00672782,0.00017619,2]
[382550908,1756665051940,480.0,0.00016697,2]
[382550971,1756665052519,480.0,0.00016697,2]
[382550979,1756665052591,429.64209308,0.00016696,2]
[382551005,1756665052837,480.0,0.00016697,2]
[382551022,1756665052982,480.0,0.00016697,2]
[382551063,1756665053367,480.0,0.00016697,2]
[382551068,1756665053401,480.0,0.00016697,2]
[382551099,1756665053679,480.0,0.00016697,2]
[382551643,1756665059566,480.0,0.00016696,2]
[382551654,1756665059689,480.0,0.00016697,2]
[382551666,1756665059869,93.75243552,0.00016697,2]
[382551669,1756665059893,386.24756448,0.00016697,2]
[382551679,1756665060021,480.0,0.00016697,2]
[382551694,1756665060221,4133.75243552,0.00016697,2]
[382551697,1756665060244,866.24756448,0.00016697,2]
[382551706,1756665060352,480.0,0.00016697,2]
[382551709,1756665060382,480.0,0.00016697,2]
[382551718,1756665060494,480.0,0.00016697,2]
[382551722,1756665060537,480.0,0.00016697,2]
[382551731,1756665060638,480.0,0.00016697,2]
[382551734,1756665060670,480.0,0.00016697,2]
[382551745,1756665060799,480.0,0.00016696,2]
[382551761,1756665060997,480.0,0.00016696,2]
[382551765,1756665061027,293.75243552,0.00016697,2]
[382551768,1756665061047,186.24756448,0.00016697,2]
[382551830,1756665061788,1357.18,0.00016697,2]
[382551833,1756665061816,480.0,0.00016697,2]
[382551863,1756665062256,480.0,0.00016697,2]
[382551926,1756665063350,480.0,0.00016697,2]
[382552019,1756665064246,300.0,0.00016696,2]
[382552054,1756665064576,480.0,0.00016696,2]
[382552252,1756665066854,480.0,0.00016697,2]
[382552295,1756665067266,480.0,0.00016697,2]
[382552356,1756665067865,276.57243552,0.00016697,2]
[382552360,1756665067895,4723.42756448,0.00016697,2]
[382552498,1756665069326,276.57243552,0.00016697,2]
[382552502,1756665069355,203.42756448,0.00016697,2]
[382552545,1756665069761,480.0,0.00016697,2]
[382552586,1756665070172,520.85,0.00016697,2]
[382552604,1756665070334,489.94,0.00016697,2]
[382552662,1756665070895,480.0,0.00016697,2]
[382552683,1756665071101,-217.34433579,0.00016794,2]
[382552919,1756665073418,794.73,0.00016697,2]
[382552926,1756665073589,2031.05243552,0.00016697,2]
[382552927,1756665073612,1488.73756448,0.00016697,2]
[382552928,1756665073870,520.49,0.00016697,2]
[382552929,1756665073998,-244.63364249,0.00016794,2]
[382552930,1756665074454,480.0,0.00016697,2]
[382552931,1756665076069,-366.98159628,0.00016794,2]
[382552932,1756665076148,2316.9829655,0.00016697,2]
[382552934,1756665077503,193.78947002,0.00016697,2]
[382552935,1756665077525,286.21052998,0.00016697,2]
[382552936,1756665078277,1676.04,0.00016697,2]
[382552937,1756665079212,-295.20917277,0.00016794,2]
[382552938,1756665080212,480.0,0.00016697,2]
[382552939,1756665082198,-479.9465181,0.00016794,2]
[382552940,1756665083930,480.0,0.00016697,2]
[382552941,1756665084271,667.53,0.00016697,2]
[382552942,1756665084442,558.19,0.00016697,2]
[382552943,1756665085035,852.02947002,0.00016697,2]
[382552944,1756665085058,5000.0,0.00016697,2]
[382552945,1756665085081,5000.0,0.00016697,2]
[382552946,1756665085103,5000.0,0.00016697,2]
[382552947,1756665085126,5000.0,0.00016697,2]
[382552948,1756665085148,5000.0,0.00016697,2]
[382552949,1756665085170,5000.0,0.00016697,2]
[382552950,1756665085193,5000.0,0.00016697,2]
[382552951,1756665085216,5000.0,0.00016697,2]
[382552952,1756665085238,5000.0,0.00016697,2]
[382552953,1756665085260,5000.0,0.00016697,2]
[382552954,1756665088504,-354.08168465,0.00016696,2]
[382552955,1756665091359,5000.0,0.000165,2]
[382552956,1756665091625,-125.91831535,0.00016696,2]
[382552957,1756665091649,-124.10833573,0.00016697,2]
[382552958,1756665095525,-189.3994798,0.00016693,2]
[382552959,1756665097676,-155.54805451,0.00016593,2]
[382552960,1756665102095,-23.3172331,0.00016593,2]
[382552961,1756665102120,-280.47034954,0.00016693,2]
[382552962,1756665104199,-169.91423159,0.00016693,2]
[382552963,1756665106530,-291.48900701,0.00016693,2]
[382552964,1756665110800,-270.6470374,0.00016693,2]
[382552965,1756665112905,-535.07989466,0.00016693,2]
[382552966,1756665112927,-0.34321251,0.00016696,2]
[382552967,1756665114406,-361.55468899,0.00016696,2]
[382552968,1756665114775,5000.0,0.000165,2]
[382552969,1756665116224,-182.57324776,0.00016696,2]
[382552970,1756665119584,-185.68294368,0.00016597,2]
[382552971,1756665122465,-160.78583715,0.00016597,2]
[382552972,1756665124121,-185.68294368,0.00016597,2]
[382552973,1756665125674,-210.33691448,0.00016597,2]
[382552974,1756665131825,-154.0452109,0.00016597,2]
[382552975,1756665133413,-152.19350763,0.00016597,2]